[Event "Live Chess"]
[Site "Chess.com"]
[Date "2023.05.20"]
[Round "-"]
[White "Bob2pen"]
[Black "mliszewski"]
[Result "1-0"]
[WhiteElo "1810"]
[BlackElo "1885"]
[TimeControl "300"]
[EndTime "11:40:52 PDT"]
[Termination "Bob2pen won by resignation"]

1. c4 {[%clk 0:04:55.8]} 1... b6 {[%clk 0:04:58.8]} 2. Nc3 {[%clk 0:04:53.7]}
2... Bb7 {[%clk 0:04:58.5]} 3. e4 {[%clk 0:04:52.8]} 3... e6 {[%clk 0:04:58.1]}
4. d3 {[%clk 0:04:51.6]} 4... Bb4 {[%clk 0:04:57.1]} 5. Ne2 {[%clk 0:04:49.4]}
5... Nf6 {[%clk 0:04:53.2]} 6. a3 {[%clk 0:04:48.1]} 6... Bxc3+ {[%clk
0:04:50.5]} 7. Nxc3 {[%clk 0:04:47]} 7... O-O {[%clk 0:04:50.4]} 8. Be2 {[%clk
0:04:44.4]} 8... d5 {[%clk 0:04:46.8]} 9. O-O {[%clk 0:04:33]} 9... dxe4 {[%clk
0:04:45.6]} 10. dxe4 {[%clk 0:04:30.2]} 10... Qxd1 {[%clk 0:04:44.8]} 11. Rxd1
{[%clk 0:04:27.8]} 11... Nxe4 {[%clk 0:04:43.2]} 12. Bf3 {[%clk 0:04:22.8]}
12... Nxc3 {[%clk 0:04:36.4]} 13. Bxb7 {[%clk 0:04:20.1]} 13... Nxd1 {[%clk
0:04:35.7]} 14. Bxa8 {[%clk 0:04:18.9]} 14... Nd7 {[%clk 0:04:30.4]} 15. Bf3
{[%clk 0:04:13.4]} 15... Nxf2 {[%clk 0:04:24.7]} 16. Kxf2 {[%clk 0:04:11.6]}
16... Nc5 {[%clk 0:04:24.6]} 17. b4 {[%clk 0:04:05]} 17... Nb3 {[%clk
0:04:22.8]} 18. Rb1 {[%clk 0:04:03.1]} 18... Nd4 {[%clk 0:04:18.5]} 19. Bb2
{[%clk 0:04:00.6]} 19... Nf5 {[%clk 0:04:17.1]} 20. Rd1 {[%clk 0:03:57.1]} 20...
h6 {[%clk 0:04:13.5]} 21. Rd7 {[%clk 0:03:55.4]} 21... c5 {[%clk 0:04:10.9]} 22.
Rxa7 {[%clk 0:03:52.9]} 22... Rd8 {[%clk 0:04:10.5]} 23. Ke2 {[%clk 0:03:39.1]}
23... cxb4 {[%clk 0:04:08.6]} 24. axb4 {[%clk 0:03:37.7]} 24... Rc8 {[%clk
0:04:06]} 25. Kd3 {[%clk 0:03:29]} 25... Rd8+ {[%clk 0:04:04.6]} 26. Kc3 {[%clk
0:03:26.4]} 26... Ne3 {[%clk 0:04:00.1]} 27. Ra8 {[%clk 0:03:22.6]} 27... Rxa8
{[%clk 0:03:55.3]} 28. Bxa8 {[%clk 0:03:20.8]} 28... Nd1+ {[%clk 0:03:54.2]} 29.
Kc2 {[%clk 0:03:16.3]} 29... Nf2 {[%clk 0:03:53.8]} 30. c5 {[%clk 0:03:12.6]}
30... bxc5 {[%clk 0:03:52.2]} 31. bxc5 {[%clk 0:03:11.2]} 31... Ng4 {[%clk
0:03:51.8]} 32. c6 {[%clk 0:03:08.4]} 32... Ne3+ {[%clk 0:03:51.1]} 33. Kd3
{[%clk 0:03:05.4]} 33... Nf5 {[%clk 0:03:50.1]} 34. c7 {[%clk 0:03:03]} 34...
Ne7 {[%clk 0:03:47.5]} 35. Bb7 {[%clk 0:02:59.7]} 1-0

[Event "Live Chess"]
[Site "Chess.com"]
[Date "2023.05.20"]
[Round "-"]
[White "Driftboard"]
[Black "Yehor20132013"]
[Result "1-0"]
[WhiteElo "688"]
[BlackElo "483"]
[TimeControl "300"]
[EndTime "11:40:52 PDT"]
[Termination "Driftboard won by resignation"]

1. e4 {[%clk 0:04:58.3]} 1... e5 {[%clk 0:04:57.4]} 2. Nf3 {[%clk 0:04:57.2]}
2... Qf6 {[%clk 0:04:38.7]} 3. Nc3 {[%clk 0:04:55.7]} 3... d5 {[%clk 0:04:34.1]}
4. Nxd5 {[%clk 0:04:51.3]} 4... Qd6 {[%clk 0:04:26.4]} 5. Bc4 {[%clk 0:04:48]}
5... c6 {[%clk 0:04:12.5]} 6. Nc3 {[%clk 0:04:41.2]} 6... Qf6 {[%clk 0:03:58.6]}
7. d3 {[%clk 0:04:32.2]} 7... Bc5 {[%clk 0:03:53.4]} 8. O-O {[%clk 0:04:30.4]}
8... Bh3 {[%clk 0:03:45.9]} 9. gxh3 {[%clk 0:04:27.6]} 9... Qg6+ {[%clk
0:03:42.4]} 10. Kh1 {[%clk 0:04:26.4]} 10... Qh6 {[%clk 0:03:09.8]} 11. Bxh6
{[%clk 0:04:22.8]} 1-0

[Event "Live Chess"]
[Site "Chess.com"]
[Date "2023.05.20"]
[Round "-"]
[White "LL220284LL"]
[Black "JohanKjeldahl"]
[Result "1-0"]
[WhiteElo "2397"]
[BlackElo "1802"]
[TimeControl "300"]
[EndTime "11:40:52 PDT"]
[Termination "LL220284LL won by resignation"]

1. d4 {[%clk 0:04:59]} 1... Nf6 {[%clk 0:04:57.9]} 2. Bg5 {[%clk 0:04:57.3]}
2... e6 {[%clk 0:04:56.1]} 3. e4 {[%clk 0:04:55.6]} 3... h6 {[%clk 0:04:52.9]}
4. Bxf6 {[%clk 0:04:53.6]} 4... Qxf6 {[%clk 0:04:51.2]} 5. Nc3 {[%clk
0:04:53.2]} 5... Bb4 {[%clk 0:04:47.9]} 6. Nf3 {[%clk 0:04:51]} 6... O-O {[%clk
0:04:46.2]} 7. Bd3 {[%clk 0:04:49.4]} 7... c5 {[%clk 0:04:42.1]} 8. e5 {[%clk
0:04:45.3]} 8... Qe7 {[%clk 0:04:39]} 9. O-O {[%clk 0:04:42.8]} 9... cxd4 {[%clk
0:04:35.8]} 10. Ne4 {[%clk 0:04:37.4]} 10... d5 {[%clk 0:04:31]} 11. exd6 {[%clk
0:04:34.2]} 11... Bxd6 {[%clk 0:04:29.6]} 12. Nxd4 {[%clk 0:04:32.9]} 12... b6
{[%clk 0:04:16.8]} 13. Re1 {[%clk 0:04:25.2]} 13... Bc5 {[%clk 0:04:10.4]} 14.
Nxc5 {[%clk 0:04:19.3]} 14... Qxc5 {[%clk 0:04:07.5]} 15. Qf3 {[%clk 0:04:18.6]}
15... Qd5 {[%clk 0:04:02.1]} 16. Be4 {[%clk 0:04:12]} 1-0

[Event "Live Chess"]
[Site "Chess.com"]
[Date "2023.05.20"]
[Round "-"]
[White "Tilbs_12"]
[Black "OceanFloater"]
[Result "1-0"]
[WhiteElo "1566"]
[BlackElo "971"]
[TimeControl "300"]
[EndTime "11:40:58 PDT"]
[Termination "Tilbs_12 won by resignation"]

1. e4 {[%clk 0:04:58.7]} 1... c6 {[%clk 0:04:58.9]} 2. d4 {[%clk 0:04:55.9]}
2... d5 {[%clk 0:04:58.6]} 3. exd5 {[%clk 0:04:55.3]} 3... cxd5 {[%clk 0:04:58]}
4. c4 {[%clk 0:04:54.8]} 4... dxc4 {[%clk 0:04:56.9]} 5. Bxc4 {[%clk 0:04:53.1]}
5... Nf6 {[%clk 0:04:56.6]} 6. Nc3 {[%clk 0:04:50.4]} 6... a6 {[%clk 0:04:54.4]}
7. a3 {[%clk 0:04:47.8]} 7... b5 {[%clk 0:04:53.4]} 8. Ba2 {[%clk 0:04:46.5]}
8... Nc6 {[%clk 0:04:52.6]} 9. Nf3 {[%clk 0:04:44.9]} 9... Bb7 {[%clk
0:04:47.2]} 10. O-O {[%clk 0:04:41.4]} 10... e6 {[%clk 0:04:45]} 11. Bg5 {[%clk
0:04:37.3]} 11... Bd6 {[%clk 0:04:42.7]} 12. Qd3 {[%clk 0:04:33.5]} 12... h6
{[%clk 0:04:41]} 13. Bh4 {[%clk 0:04:24.4]} 13... Rc8 {[%clk 0:04:22.4]} 14.
Rad1 {[%clk 0:04:22.5]} 14... O-O {[%clk 0:04:17.1]} 15. Bb1 {[%clk 0:04:18.6]}
15... g6 {[%clk 0:04:08.2]} 16. Ne4 {[%clk 0:04:10.2]} 16... Be7 {[%clk
0:04:02.3]} 17. Qe3 {[%clk 0:04:04.6]} 17... Kg7 {[%clk 0:03:42.5]} 18. Nxf6
{[%clk 0:03:40.6]} 18... Bxf6 {[%clk 0:03:40.4]} 19. Bxf6+ {[%clk 0:03:39.1]}
19... Qxf6 {[%clk 0:03:39.1]} 20. Rfe1 {[%clk 0:03:26.2]} 20... Rfd8 {[%clk
0:03:31.3]} 21. Ne5 {[%clk 0:03:19.9]} 21... Nxe5 {[%clk 0:03:29.8]} 22. Qxe5
{[%clk 0:03:13.4]} 22... Qxe5 {[%clk 0:03:27.8]} 23. dxe5 {[%clk 0:03:12.7]}
23... Rxd1 {[%clk 0:03:23.9]} 24. Rxd1 {[%clk 0:03:11.7]} 24... Bd5 {[%clk
0:03:21.5]} 25. f3 {[%clk 0:03:03.7]} 25... f6 {[%clk 0:03:18.3]} 26. exf6+
{[%clk 0:03:01.3]} 26... Kxf6 {[%clk 0:03:16.9]} 27. Kf2 {[%clk 0:03:00]} 27...
a5 {[%clk 0:03:08.5]} 28. Ke3 {[%clk 0:02:45.5]} 28... b4 {[%clk 0:03:05]} 29.
axb4 {[%clk 0:02:43.9]} 29... axb4 {[%clk 0:03:04.1]} 30. Rd4 {[%clk 0:02:38.3]}
30... Rc1 {[%clk 0:02:59.2]} 31. Be4 {[%clk 0:02:29.1]} 31... Bxe4 {[%clk
0:02:53.4]} 32. Rxe4 {[%clk 0:02:27.3]} 32... Rc2 {[%clk 0:02:45.1]} 33. Rxb4
{[%clk 0:02:25.9]} 33... Rxg2 {[%clk 0:02:43.4]} 34. Rb8 {[%clk 0:02:09.9]}
34... Rxh2 {[%clk 0:02:41.7]} 35. b4 {[%clk 0:02:09.5]} 35... Rb2 {[%clk
0:02:38.4]} 36. b5 {[%clk 0:02:08.2]} 36... h5 {[%clk 0:02:38]} 37. b6 {[%clk
0:02:07.2]} 37... h4 {[%clk 0:02:37.5]} 38. b7 {[%clk 0:02:03]} 38... h3 {[%clk
0:02:36.5]} 39. Rf8+ {[%clk 0:02:00.6]} 39... Ke7 {[%clk 0:02:33.7]} 40. b8=Q
{[%clk 0:01:58.3]} 40... Rxb8 {[%clk 0:02:29.6]} 41. Rxb8 {[%clk 0:01:57]} 41...
Kf6 {[%clk 0:02:22.7]} 42. Kf4 {[%clk 0:01:53.3]} 42... e5+ {[%clk 0:02:20.2]}
43. Kg4 {[%clk 0:01:52.2]} 43... g5 {[%clk 0:02:18.9]} 44. Rh8 {[%clk
0:01:48.5]} 44... e4 {[%clk 0:02:16.6]} 45. fxe4 {[%clk 0:01:47]} 45... Ke5
{[%clk 0:02:16.2]} 46. Kxg5 {[%clk 0:01:43.7]} 46... Kxe4 {[%clk 0:02:15.1]} 47.
Rxh3 {[%clk 0:01:42.9]} 1-0

[Event "Live Chess"]
[Site "Chess.com"]
[Date "2023.05.20"]
[Round "-"]
[White "EdenHazard8"]
[Black "manthanit"]
[Result "1-0"]
[WhiteElo "2091"]
[BlackElo "952"]
[TimeControl "300"]
[EndTime "11:41:06 PDT"]
[Termination "EdenHazard8 won by resignation"]

1. e4 {[%clk 0:04:58.8]} 1... e6 {[%clk 0:04:59.6]} 2. d4 {[%clk 0:04:57.3]}
2... d5 {[%clk 0:04:59.2]} 3. Nd2 {[%clk 0:04:56.7]} 3... c5 {[%clk 0:04:54.3]}
4. Ngf3 {[%clk 0:04:55]} 4... a6 {[%clk 0:04:52.1]} 5. exd5 {[%clk 0:04:53.6]}
5... exd5 {[%clk 0:04:50.5]} 6. c3 {[%clk 0:04:52.9]} 6... Qb6 {[%clk
0:04:48.1]} 7. Bd3 {[%clk 0:04:51.5]} 7... Nf6 {[%clk 0:04:46.5]} 8. O-O {[%clk
0:04:50.5]} 8... Be7 {[%clk 0:04:45.6]} 9. Re1 {[%clk 0:04:50.4]} 9... Nc6
{[%clk 0:04:43.1]} 10. Nf1 {[%clk 0:04:47.3]} 10... O-O {[%clk 0:04:41.4]} 11.
Ng3 {[%clk 0:04:43.7]} 11... cxd4 {[%clk 0:04:40.1]} 12. cxd4 {[%clk 0:04:41.8]}
12... Bd6 {[%clk 0:04:36.5]} 13. Ne5 {[%clk 0:04:40.3]} 13... Nxd4 {[%clk
0:04:28.5]} 14. Be3 {[%clk 0:04:32.5]} 14... Bxe5 {[%clk 0:04:17.6]} 15. f4
{[%clk 0:04:31.3]} 15... Bg4 {[%clk 0:03:50.3]} 16. Qd2 {[%clk 0:04:21.1]} 16...
Bxf4 {[%clk 0:02:42]} 17. Kh1 {[%clk 0:04:18]} 17... Bxe3 {[%clk 0:02:37.1]} 18.
Rxe3 {[%clk 0:04:17.9]} 18... Rae8 {[%clk 0:02:25.5]} 19. Rf1 {[%clk 0:04:12.7]}
19... Rxe3 {[%clk 0:02:03.8]} 20. Qxe3 {[%clk 0:04:12.6]} 20... Qe6 {[%clk
0:01:52.7]} 21. Qxd4 {[%clk 0:04:10]} 21... Nh5 {[%clk 0:00:51.1]} 22. Nxh5
{[%clk 0:04:05.3]} 22... Bxh5 {[%clk 0:00:50.1]} 23. Qh4 {[%clk 0:04:05]} 23...
g6 {[%clk 0:00:45.8]} 24. h3 {[%clk 0:04:04.1]} 24... Be2 {[%clk 0:00:37.7]} 25.
Re1 {[%clk 0:04:02.7]} 1-0

[Event "Live Chess"]
[Site "Chess.com"]
[Date "2023.05.20"]
[Round "-"]
[White "thrithik"]
[Black "Tushinskiy"]
[Result "0-1"]
[WhiteElo "465"]
[BlackElo "2115"]
[TimeControl "300"]
[EndTime "11:41:08 PDT"]
[Termination "Tushinskiy won by checkmate"]

1. a3 {[%clk 0:04:56.4]} 1... d5 {[%clk 0:04:59]} 2. f3 {[%clk 0:04:51.9]} 2...
c6 {[%clk 0:04:58.9]} 3. e4 {[%clk 0:04:49.6]} 3... Nf6 {[%clk 0:04:58.4]} 4.
Nc3 {[%clk 0:04:43.5]} 4... e5 {[%clk 0:04:56]} 5. Bd3 {[%clk 0:04:39.4]} 5...
d4 {[%clk 0:04:54.9]} 6. Nh3 {[%clk 0:04:37.9]} 6... Bd6 {[%clk 0:04:54.8]} 7.
Na4 {[%clk 0:04:27]} 7... Bxh3 {[%clk 0:04:51.9]} 8. gxh3 {[%clk 0:04:24.2]}
8... b5 {[%clk 0:04:51.8]} 9. Nc3 {[%clk 0:04:09.5]} 9... dxc3 {[%clk
0:04:44.9]} 10. bxc3 {[%clk 0:04:08.6]} 10... Nh5 {[%clk 0:04:43.1]} 11. Rg1
{[%clk 0:03:59.8]} 11... Qh4+ {[%clk 0:04:41.1]} 12. Kf1 {[%clk 0:03:50.2]}
12... Qxh3+ {[%clk 0:04:39.3]} 13. Ke2 {[%clk 0:03:47.3]} 13... Nf4+ {[%clk
0:04:36.2]} 14. Ke3 {[%clk 0:03:43.2]} 14... Bc5# {[%clk 0:04:34.7]} 0-1

[Event "Live Chess"]
[Site "Chess.com"]
[Date "2023.05.20"]
[Round "-"]
[White "mattihelenius2"]
[Black "LGC4YOU"]
[Result "0-1"]
[WhiteElo "490"]
[BlackElo "1185"]
[TimeControl "300"]
[EndTime "11:41:11 PDT"]
[Termination "LGC4YOU won by checkmate"]

1. d4 {[%clk 0:04:58.7]} 1... c5 {[%clk 0:04:59.9]} 2. e4 {[%clk 0:04:50.7]}
2... cxd4 {[%clk 0:04:58.4]} 3. Qxd4 {[%clk 0:04:49.9]} 3... Nc6 {[%clk
0:04:57.9]} 4. Qd1 {[%clk 0:04:45.3]} 4... e6 {[%clk 0:04:54.9]} 5. Nc3 {[%clk
0:04:40.9]} 5... g6 {[%clk 0:04:49.7]} 6. Bb5 {[%clk 0:04:39.7]} 6... Bg7 {[%clk
0:04:47.5]} 7. Qd6 {[%clk 0:04:32.4]} 7... Be5 {[%clk 0:04:35.2]} 8. Qd3 {[%clk
0:04:14.3]} 8... a6 {[%clk 0:04:27.3]} 9. Bxc6 {[%clk 0:04:12.3]} 9... bxc6
{[%clk 0:04:26.4]} 10. Nf3 {[%clk 0:04:04]} 10... Bg7 {[%clk 0:04:24.1]} 11. Bg5
{[%clk 0:03:45]} 11... Bf6 {[%clk 0:04:12.9]} 12. h4 {[%clk 0:03:29.7]} 12... d5
{[%clk 0:04:10.4]} 13. Bxf6 {[%clk 0:03:09.8]} 13... Qxf6 {[%clk 0:04:00.5]} 14.
Qd4 {[%clk 0:03:03.3]} 14... Qxd4 {[%clk 0:03:47.3]} 15. Nxd4 {[%clk 0:03:03.2]}
15... c5 {[%clk 0:03:44.3]} 16. Nc6 {[%clk 0:03:00.6]} 16... d4 {[%clk
0:03:37.1]} 17. Na4 {[%clk 0:02:52.7]} 17... Bb7 {[%clk 0:03:35]} 18. Nb6 {[%clk
0:02:44.5]} 18... Bxc6 {[%clk 0:03:24.2]} 19. Nxa8 {[%clk 0:02:41.5]} 19... Bxa8
{[%clk 0:03:23.2]} 20. Rd1 {[%clk 0:02:39.9]} 20... Ne7 {[%clk 0:03:21.7]} 21.
O-O {[%clk 0:02:39.1]} 21... Bxe4 {[%clk 0:03:20.2]} 22. Rfe1 {[%clk 0:02:36.9]}
22... Bxc2 {[%clk 0:03:18.2]} 23. Rd2 {[%clk 0:02:34.9]} 23... Bf5 {[%clk
0:03:12.5]} 24. b3 {[%clk 0:02:32.8]} 24... O-O {[%clk 0:02:58]} 25. Rc1 {[%clk
0:02:30.7]} 25... Rc8 {[%clk 0:02:54.6]} 26. a4 {[%clk 0:02:28]} 26... e5 {[%clk
0:02:53.4]} 27. g3 {[%clk 0:02:20.8]} 27... Be6 {[%clk 0:02:48.7]} 28. b4 {[%clk
0:02:11.6]} 28... cxb4 {[%clk 0:02:39]} 29. Rxc8+ {[%clk 0:02:04.9]} 29... Nxc8
{[%clk 0:02:32.7]} 30. a5 {[%clk 0:02:01.7]} 30... b3 {[%clk 0:02:31.1]} 31. Rb2
{[%clk 0:01:59.8]} 31... Nd6 {[%clk 0:02:25.6]} 32. f4 {[%clk 0:01:57.8]} 32...
f6 {[%clk 0:02:23.9]} 33. fxe5 {[%clk 0:01:55.9]} 33... fxe5 {[%clk 0:02:23.2]}
34. g4 {[%clk 0:01:55]} 34... Nc4 {[%clk 0:02:21]} 35. Kf2 {[%clk 0:01:54.6]}
35... Nxb2 {[%clk 0:02:20]} 36. Kf3 {[%clk 0:01:53.3]} 36... Nc4 {[%clk
0:02:18.7]} 37. Ke4 {[%clk 0:01:52.8]} 37... Kf7 {[%clk 0:02:14]} 38. Kd3 {[%clk
0:01:50.3]} 38... Ke7 {[%clk 0:02:11.7]} 39. Ke4 {[%clk 0:01:48.1]} 39... b2
{[%clk 0:02:10.6]} 40. Kf3 {[%clk 0:01:45.5]} 40... b1=Q {[%clk 0:02:09.2]} 41.
g5 {[%clk 0:01:44.7]} 41... Qf5+ {[%clk 0:02:06.4]} 42. Kg3 {[%clk 0:01:43.3]}
42... Qg4+ {[%clk 0:02:05.4]} 43. Kf2 {[%clk 0:01:41.2]} 43... Qh3 {[%clk
0:02:04.1]} 44. Ke2 {[%clk 0:01:39]} 44... Qe3+ {[%clk 0:02:01.9]} 45. Kd1
{[%clk 0:01:37.8]} 45... Qd2# {[%clk 0:02:00.6]} 0-1

[Event "Live Chess"]
[Site "Chess.com"]
[Date "2023.05.20"]
[Round "-"]
[White "bedsdrout"]
[Black "Rusty_Bridges"]
[Result "0-1"]
[WhiteElo "377"]
[BlackElo "1420"]
[TimeControl "300"]
[EndTime "11:41:14 PDT"]
[Termination "Rusty_Bridges won on time"]

1. e3 {[%clk 0:04:57.8]} 1... d6 {[%clk 0:04:57.8]} 2. Nc3 {[%clk 0:04:54.7]}
2... Nf6 {[%clk 0:04:52.8]} 3. Bc4 {[%clk 0:04:52.5]} 3... Nbd7 {[%clk
0:04:51.6]} 4. Nd5 {[%clk 0:04:45.6]} 4... Nxd5 {[%clk 0:04:49.8]} 5. Bxd5
{[%clk 0:04:42.7]} 5... e6 {[%clk 0:04:49.1]} 6. Bc4 {[%clk 0:04:40.2]} 6... Be7
{[%clk 0:04:45.3]} 7. Qh5 {[%clk 0:04:36.7]} 7... O-O {[%clk 0:04:40.7]} 8. Bd3
{[%clk 0:04:32.9]} 8... Nf6 {[%clk 0:04:38.5]} 9. Qh4 {[%clk 0:04:29.5]} 9... e5
{[%clk 0:04:36.3]} 10. Nf3 {[%clk 0:04:28]} 10... Qd7 {[%clk 0:04:11]} 11. O-O
{[%clk 0:03:46.2]} 11... Qe6 {[%clk 0:04:08.8]} 12. g4 {[%clk 0:03:29.4]} 12...
e4 {[%clk 0:04:07.2]} 13. b4 {[%clk 0:03:07.8]} 13... exd3 {[%clk 0:04:05.1]}
14. Bb2 {[%clk 0:03:05]} 14... dxc2 {[%clk 0:03:59.9]} 15. Ng5 {[%clk
0:03:02.1]} 15... Qxg4+ {[%clk 0:03:50.1]} 16. Qg3 {[%clk 0:02:49.7]} 16...
Qxg3+ {[%clk 0:03:45.6]} 17. hxg3 {[%clk 0:02:47.1]} 17... h6 {[%clk 0:03:43.7]}
18. Ne4 {[%clk 0:02:37.9]} 18... Nxe4 {[%clk 0:03:41.7]} 19. f3 {[%clk 0:02:31]}
19... Nxd2 {[%clk 0:03:37.1]} 20. Rf2 {[%clk 0:02:17.9]} 20... Nc4 {[%clk
0:03:34.3]} 21. Bc3 {[%clk 0:02:08.1]} 21... Nxe3 {[%clk 0:03:29.8]} 22. Kh2
{[%clk 0:01:31.2]} 22... Bf5 {[%clk 0:03:12.3]} 23. Bd4 {[%clk 0:01:24.8]} 23...
Nd5 {[%clk 0:03:05.6]} 24. g4 {[%clk 0:00:58.3]} 24... Bg6 {[%clk 0:03:02.1]}
25. Kh1 {[%clk 0:00:50.6]} 25... Bg5 {[%clk 0:02:59.4]} 26. Rh2 {[%clk
0:00:48.8]} 26... c1=Q+ {[%clk 0:02:56.4]} 27. Rxc1 {[%clk 0:00:44.3]} 27...
Bxc1 {[%clk 0:02:56.3]} 28. g5 {[%clk 0:00:28.6]} 28... Bxg5 {[%clk 0:02:50.5]}
29. b5 {[%clk 0:00:18.5]} 29... Rfe8 {[%clk 0:02:47.9]} 30. a4 {[%clk
0:00:17.6]} 30... Re1+ {[%clk 0:02:45.3]} 31. Kg2 {[%clk 0:00:15.1]} 31... Re2+
{[%clk 0:02:44.2]} 32. Kf1 {[%clk 0:00:13.3]} 32... Rxh2 {[%clk 0:02:42.8]} 33.
a5 {[%clk 0:00:10]} 33... Bd3+ {[%clk 0:02:40.9]} 34. Ke1 {[%clk 0:00:08.2]}
34... Re8+ {[%clk 0:02:37.5]} 35. Kd1 {[%clk 0:00:06.5]} 35... Ree2 {[%clk
0:02:35.6]} 36. b6 {[%clk 0:00:02.1]} 36... axb6 {[%clk 0:02:33.4]} 37. axb6
{[%clk 0:00:01.1]} 37... Nxb6 {[%clk 0:02:32.1]} 0-1

[Event "Live Chess"]
[Site "Chess.com"]
[Date "2023.05.20"]
[Round "-"]
[White "Ayursworld"]
[Black "JackRudd"]
[Result "0-1"]
[WhiteElo "1345"]
[BlackElo "2434"]
[TimeControl "300"]
[EndTime "11:41:20 PDT"]
[Termination "JackRudd won by checkmate"]

1. e4 {[%clk 0:04:58.1]} 1... c5 {[%clk 0:04:58.3]} 2. Nf3 {[%clk 0:04:56.8]}
2... d6 {[%clk 0:04:57.4]} 3. d4 {[%clk 0:04:54.5]} 3... cxd4 {[%clk 0:04:56.6]}
4. Qxd4 {[%clk 0:04:52.2]} 4... Bd7 {[%clk 0:04:54.3]} 5. a4 {[%clk 0:04:49]}
5... Nc6 {[%clk 0:04:53.1]} 6. Qc3 {[%clk 0:04:44.9]} 6... Nf6 {[%clk
0:04:51.6]} 7. Nbd2 {[%clk 0:04:40.2]} 7... Rc8 {[%clk 0:04:47.1]} 8. Qb3 {[%clk
0:04:34.1]} 8... Qc7 {[%clk 0:04:38.4]} 9. Bb5 {[%clk 0:04:25.8]} 9... a6 {[%clk
0:04:34.9]} 10. Bxc6 {[%clk 0:04:23.2]} 10... Bxc6 {[%clk 0:04:33.5]} 11. O-O
{[%clk 0:04:17.6]} 11... Nxe4 {[%clk 0:04:29.8]} 12. Nxe4 {[%clk 0:04:15.3]}
12... Bxe4 {[%clk 0:04:28.9]} 13. Be3 {[%clk 0:04:11.4]} 13... Qxc2 {[%clk
0:04:24.6]} 14. Qxc2 {[%clk 0:04:02.2]} 14... Rxc2 {[%clk 0:04:22.5]} 15. Nd4
{[%clk 0:04:01.1]} 15... Rxb2 {[%clk 0:04:20.8]} 16. f3 {[%clk 0:03:59.1]} 16...
Bc6 {[%clk 0:04:18.3]} 17. Nxc6 {[%clk 0:03:57.4]} 17... bxc6 {[%clk 0:04:16.8]}
18. Rfc1 {[%clk 0:03:56.2]} 18... Kd7 {[%clk 0:04:15.2]} 19. Rab1 {[%clk
0:03:52.4]} 19... Rxb1 {[%clk 0:04:14.2]} 20. Rxb1 {[%clk 0:03:51]} 20... g6
{[%clk 0:04:09.7]} 21. Rb7+ {[%clk 0:03:47.6]} 21... Ke6 {[%clk 0:04:08.2]} 22.
Ra7 {[%clk 0:03:46.4]} 22... Bg7 {[%clk 0:04:06.2]} 23. Rxa6 {[%clk 0:03:45]}
23... Kd5 {[%clk 0:04:03.8]} 24. Ra5+ {[%clk 0:03:43.5]} 24... c5 {[%clk
0:04:03]} 25. Ra7 {[%clk 0:03:38.3]} 25... Bf6 {[%clk 0:04:01.6]} 26. Rb7 {[%clk
0:03:33.4]} 26... Ra8 {[%clk 0:04:00.2]} 27. Rb1 {[%clk 0:03:16.5]} 27... Rxa4
{[%clk 0:03:57.8]} 28. g3 {[%clk 0:03:12.7]} 28... Kc6 {[%clk 0:03:55]} 29. h4
{[%clk 0:03:05.1]} 29... Ra3 {[%clk 0:03:48]} 30. Kf2 {[%clk 0:02:59.2]} 30...
Ra2+ {[%clk 0:03:46.8]} 31. Kf1 {[%clk 0:02:57.9]} 31... Bd4 {[%clk 0:03:44.7]}
32. Bxd4 {[%clk 0:02:56.4]} 32... cxd4 {[%clk 0:03:43.9]} 33. Rc1+ {[%clk
0:02:54.6]} 33... Kd5 {[%clk 0:03:42.9]} 34. f4 {[%clk 0:02:53.1]} 34... f6
{[%clk 0:03:39.4]} 35. Re1 {[%clk 0:02:51.4]} 35... e5 {[%clk 0:03:38.4]} 36.
fxe5 {[%clk 0:02:49.6]} 36... dxe5 {[%clk 0:03:37.6]} 37. Rb1 {[%clk 0:02:47.4]}
37... e4 {[%clk 0:03:36.6]} 38. Rb5+ {[%clk 0:02:44.5]} 38... Kc4 {[%clk
0:03:35.7]} 39. Rb8 {[%clk 0:02:41.5]} 39... f5 {[%clk 0:03:34.5]} 40. Rc8+
{[%clk 0:02:39.6]} 40... Kd3 {[%clk 0:03:33.5]} 41. Rh8 {[%clk 0:02:35.4]} 41...
Ke3 {[%clk 0:03:32]} 42. Rxh7 {[%clk 0:02:31.8]} 42... Kf3 {[%clk 0:03:31.1]}
43. Ke1 {[%clk 0:02:30.1]} 43... e3 {[%clk 0:03:30]} 44. Rh6 {[%clk 0:02:27.7]}
44... Ra1# {[%clk 0:03:28]} 0-1

[Event "Live Chess"]
[Site "Chess.com"]
[Date "2023.05.20"]
[Round "-"]
[White "ClassyChameleon"]
[Black "TobyQuaite"]
[Result "0-1"]
[WhiteElo "1065"]
[BlackElo "1694"]
[TimeControl "300"]
[EndTime "11:41:25 PDT"]
[Termination "TobyQuaite won by checkmate"]

1. e4 {[%clk 0:04:59.6]} 1... e6 {[%clk 0:04:59.2]} 2. d4 {[%clk 0:04:57]} 2...
d5 {[%clk 0:04:58.6]} 3. Nc3 {[%clk 0:04:52.1]} 3... Bb4 {[%clk 0:04:57.1]} 4.
exd5 {[%clk 0:04:44.8]} 4... exd5 {[%clk 0:04:55.5]} 5. Nf3 {[%clk 0:04:41.2]}
5... Nf6 {[%clk 0:04:52.8]} 6. Bd3 {[%clk 0:04:38.5]} 6... Bg4 {[%clk
0:04:45.4]} 7. O-O {[%clk 0:04:36.7]} 7... O-O {[%clk 0:04:40.5]} 8. h3 {[%clk
0:04:33.3]} 8... Bh5 {[%clk 0:04:38.4]} 9. g4 {[%clk 0:04:31.6]} 9... Bg6 {[%clk
0:04:37.4]} 10. Bxg6 {[%clk 0:04:26.1]} 10... hxg6 {[%clk 0:04:37.3]} 11. Ne5
{[%clk 0:04:25]} 11... Nbd7 {[%clk 0:04:31.6]} 12. Nxd7 {[%clk 0:04:23.2]} 12...
Qxd7 {[%clk 0:04:31.5]} 13. Ne2 {[%clk 0:04:21.2]} 13... Rfe8 {[%clk 0:04:29.7]}
14. Nf4 {[%clk 0:04:19.5]} 14... Ne4 {[%clk 0:04:18.4]} 15. Be3 {[%clk
0:04:14.6]} 15... c6 {[%clk 0:04:10.3]} 16. c3 {[%clk 0:03:51.7]} 16... Bd6
{[%clk 0:04:08.5]} 17. Kg2 {[%clk 0:03:42.8]} 17... f5 {[%clk 0:03:49.9]} 18. f3
{[%clk 0:03:27.8]} 18... Ng5 {[%clk 0:03:40.6]} 19. Re1 {[%clk 0:03:12.2]} 19...
Rxe3 {[%clk 0:03:35]} 20. Rxe3 {[%clk 0:03:05]} 20... Bxf4 {[%clk 0:03:34.5]}
21. Re2 {[%clk 0:02:58.3]} 21... fxg4 {[%clk 0:03:31.3]} 22. hxg4 {[%clk
0:02:56.5]} 22... Re8 {[%clk 0:03:30.5]} 23. Rxe8+ {[%clk 0:02:54.1]} 23... Qxe8
{[%clk 0:03:30.4]} 24. Qd3 {[%clk 0:02:46]} 24... Qe6 {[%clk 0:03:23.1]} 25. b3
{[%clk 0:02:26.1]} 25... Bd6 {[%clk 0:03:05]} 26. Rf1 {[%clk 0:02:11.7]} 26...
Qf6 {[%clk 0:02:57.3]} 27. a4 {[%clk 0:01:54.6]} 27... Ne6 {[%clk 0:02:55.9]}
28. Qb1 {[%clk 0:01:35.1]} 28... Nf4+ {[%clk 0:02:44]} 29. Kf2 {[%clk
0:01:27.4]} 29... c5 {[%clk 0:02:41.5]} 30. b4 {[%clk 0:01:02.8]} 30... cxd4
{[%clk 0:02:37.4]} 31. cxd4 {[%clk 0:01:02.2]} 31... Qxd4+ {[%clk 0:02:37.3]}
32. Ke1 {[%clk 0:00:50.7]} 32... Bxb4+ {[%clk 0:02:35.7]} 33. Qxb4 {[%clk
0:00:44.3]} 33... Qxb4+ {[%clk 0:02:35.6]} 34. Kd1 {[%clk 0:00:43.9]} 34... Qb2
{[%clk 0:02:28.4]} 35. Re1 {[%clk 0:00:41.5]} 35... Nd3 {[%clk 0:02:19.5]} 36.
Re2 {[%clk 0:00:39.7]} 36... Qc1# {[%clk 0:02:17.7]} 0-1